bitfinex-derivatives/quotes_SOLF0:USTF0_20250522
["timestamp","ask_amount","ask_price","bid_price","bid_amount"]
[1747884850835,5.6991,175.42,175.38,5.73634689]
[1747884851242,156.1,175.47,175.38,0.03614689]
[1747884851542,5.6993,175.41,175.38,0.03614689]
[1747884851732,156.1,175.47,175.38,0.03614689]
[1747884852542,5.6991,175.42,175.38,5.73634689]
[1747884853238,156.1,175.47,175.38,0.03614689]
[1747884854332,156.1,175.47,175.39,5.6998]
[1747884854940,5.6987,175.43,175.39,5.6998]
[1747884855245,156.1,175.47,175.38,0.03614689]
[1747884856144,5.6983,175.45,175.4,5.6995]
[1747884856441,156.1,175.47,175.41,0.04054304]
[1747884856644,5.9767,175.5,175.41,0.04054304]
[1747884856848,648.92,175.51,175.41,0.04054304]
[1747884857043,8.54177889,175.5,175.41,0.04054304]
[1747884858346,6.58717889,175.47,175.41,0.04054304]
[1747884858546,160.0719,175.46,175.41,0.04054304]
[1747884858846,5.699,175.42,175.41,0.04054304]
[1747884861147,5.6986,175.43,175.41,0.04054304]
[1747884862248,5.699,175.42,175.41,0.04054304]
[1747884862446,160.0719,175.46,175.41,0.04054304]
[1747884863255,5.6989,175.43,175.41,0.04054304]
[1747884863550,160.0719,175.46,175.41,0.04054304]
[1747884863748,5.699,175.42,175.41,0.04054304]
[1747884864147,160.0719,175.46,175.41,0.04054304]
[1747884865554,5.699,175.42,175.41,0.04054304]
[1747884871745,5.6987,175.43,175.41,0.04054304]
[1747884871942,160.0719,175.46,175.41,0.04054304]
[1747884872345,5.6985,175.44,175.41,0.04054304]
[1747884873055,5.6987,175.43,175.41,0.04054304]
[1747884873255,160.0719,175.46,175.41,0.04054304]
[1747884873655,5.699,175.42,175.41,0.04054304]
[1747884874859,5.6987,175.43,175.41,0.04054304]
[1747884875251,156.06,175.46,175.41,0.04054304]
[1747884875653,5.6982,175.45,175.41,5.73964304]
[1747884876965,153.88,175.5,175.41,0.04054304]
[1747884877261,153.88,175.5,175.41,2.10694304]
[1747884877564,153.88,175.5,175.41,4.01604304]
[1747884877956,5.6971,175.48,175.44,5.6983]
[1747884878162,153.88,175.5,175.44,0.03893124]
[1747884879061,5.6973,175.48,175.44,0.03893124]
[1747884879261,153.88,175.5,175.44,0.03893124]
[1747884880861,5.6976,175.47,175.44,0.03893124]
[1747884881062,153.88,175.5,175.44,0.03893124]
[1747884881761,5.6979,175.46,175.44,0.03893124]
[1747884881964,153.88,175.5,175.44,0.03893124]
[1747884882562,73.27806286,262.01,175.44,0.03893124]
[1747884882563,499.73909914,175.59,175.44,0.03893124]
[1747884882756,157.7442,175.58,175.5,0.0423941]
[1747884883766,5.6958,175.52,175.5,0.0423941]
[1747884883957,157.7442,175.58,175.5,0.0423941]
[1747884886267,5.6947,175.56,175.51,5.6959]
[1747884886565,5.6947,175.56,175.5,0.0423941]
[1747884886763,5.6947,175.56,175.52,5.6957]
[1747884887260,157.7442,175.58,175.52,5.6954]
[1747884887463,157.7442,175.58,175.5,0.0423941]
[1747884887662,5.6944,175.57,175.52,5.6955]
[1747884887859,157.7442,175.58,175.5,0.0423941]
[1747884888465,5.6946,175.56,175.52,5.6957]
[1747884889066,5.6946,175.56,175.51,5.6959]
[1747884889267,5.6949,175.55,175.51,5.6959]
[1747884889468,157.7442,175.58,175.5,0.0423941]
[1747884891570,164.33137889,175.58,175.5,0.0423941]
[1747884891768,5.696,175.52,175.5,0.0423941]
[1747884892270,157.7442,175.58,175.5,0.0423941]
[1747884895666,5.696,175.51,175.5,0.0423941]
[1747884896474,157.7442,175.58,175.5,0.0423941]
[1747884897673,164.33137889,175.58,175.5,0.0423941]
[1747884898071,5.696,175.52,175.5,0.0423941]
[1747884898278,164.33137889,175.58,175.5,0.0423941]
[1747884898279,157.7442,175.58,175.5,0.0423941]
[1747884899170,5.696,175.52,175.5,0.0423941]
[1747884899577,157.7442,175.58,175.5,0.0423941]
[1747884900473,5.696,175.51,175.5,0.0423941]
[1747884901880,157.7442,175.58,175.5,0.0423941]
[1747884902579,5.6956,175.53,175.5,0.0423941]
[1747884902874,5.6958,175.52,175.5,0.0423941]
[1747884903081,6.58717889,175.63,175.5,0.0423941]
[1747884903283,1.9411,175.62,175.55,0.03832464]
[1747884903783,1.9374,175.61,175.55,0.03832464]
[1747884904079,148.04,175.6,175.55,0.03832464]
[1747884904279,5.6944,175.56,175.55,0.03832464]
[1747884905179,0.03918025,175.57,175.5,1.42473375]
[1747884905786,0.03918025,175.57,175.45,148.02]
[1747884905976,6.58717889,175.58,175.45,148.02]
[1747884906177,0.03855792,175.53,175.5,0.04001326]
[1747884906978,5.73405792,175.53,175.5,0.04001326]
[1747884907185,0.03855792,175.53,175.5,0.04001326]
[1747884907781,0.03855792,175.53,175.5,5.73631326]
[1747884908082,5.696,175.52,175.5,0.04001326]
[1747884908386,0.03855792,175.53,175.5,0.04001326]
[1747884909281,0.03855792,175.53,175.5,5.73631326]
[1747884909880,0.03855792,175.53,175.5,0.04001326]
[1747884910580,0.03855792,175.53,175.52,5.6957]
[1747884910790,0.03855792,175.53,175.5,0.04001326]
[1747884911687,0.03855792,175.53,175.5,5.73611326]
[1747884911890,0.03855792,175.53,175.5,0.04001326]
[1747884912381,0.03855792,175.53,175.51,5.6958]
[1747884912580,0.03855792,175.53,175.5,0.04001326]
[1747884912877,0.03855792,175.53,175.52,5.6957]
[1747884915487,148.02,175.66,175.52,5.7]
[1747884915685,148.02,175.66,175.53,2.0377]
[1747884915886,5.6925,175.62,175.54,6.58717889]
[1747884916077,148.02,175.66,175.53,2.0377]
[1747884916486,5.6927,175.62,175.58,0.0368937]
[1747884917681,148.02,175.66,175.58,0.0368937]
[1747884917884,6.58717889,175.64,175.58,0.0368937]
[1747884918088,2.0706,175.63,175.58,0.0368937]
[1747884918291,6.1612,175.63,175.58,0.0368937]
[1747884918692,5.6934,175.59,175.58,0.0368937]
[1747884923399,5.6934,175.59,175.58,9.37e-05]
[1747884924601,5.6959,175.52,175.47,6.69540839]
[1747884924996,6.58717889,175.58,175.47,0.99810839]
[1747884925304,5.6962,175.51,175.48,1.42454341]
[1747884925599,0.03820034,175.51,175.48,1.46666981]
[1747884926291,0.03820034,175.51,175.49,5.6967]
[1747884926494,0.03820034,175.51,175.48,1.46666981]
[1747884926800,0.03820034,175.51,175.49,1.42454341]
[1747884927502,5.73450034,175.51,175.49,1.42454341]
[1747884927800,5.73450034,175.51,175.5,1.42454341]
[1747884930304,0.03820034,175.51,175.5,1.42454341]
[1747884930498,0.03820034,175.51,175.48,5.7388264]
[1747884930905,0.03820034,175.51,175.49,5.6967]
[1747884931404,0.03820034,175.51,175.48,0.0421264]
[1747884931602,0.03820034,175.51,175.48,5.7391264]
[1747884932099,0.03820034,175.51,175.49,1.4245271]
[1747884933401,0.03820034,175.51,175.5,1.4245271]
[1747884934310,5.73420034,175.51,175.5,1.4245271]
[1747884935204,5.6967,175.49,175.48,0.0421264]
[1747884943413,0.03820034,175.51,175.48,0.0421264]
[1747884944019,0.03820034,175.51,175.48,5.7390264]
[1747884944311,0.03820034,175.51,175.48,0.0421264]
[1747884944514,0.03820034,175.51,175.48,5.7391264]
[1747884945716,0.03820034,175.51,175.48,0.0421264]
[1747884946201,0.03820034,175.51,175.48,5.7388264]
[1747884947207,0.03820034,175.51,175.48,0.0421264]
[1747884948512,0.03820034,175.51,175.49,1.42460078]
[1747884949317,0.03820034,175.51,175.49,7.12120078]
[1747884949618,0.03820034,175.51,175.49,1.42460078]
[1747884949810,0.03820034,175.51,175.49,7.12120078]
[1747884950015,0.03820034,175.51,175.49,1.42460078]
[1747884950420,0.03820034,175.51,175.5,1.42460078]
[1747884953424,0.03820034,175.51,175.5,7.12100078]
[1747884958730,0.03820034,175.51,175.5,1.42460078]
[1747884961844,168.9255,175.59,175.5,1.42460078]
[1747884962647,5.6938,175.58,175.53,5.73896361]
[1747884962839,164.9,175.59,175.53,0.04386361]
[1747884963251,5.6947,175.56,175.53,0.04386361]
[1747884963639,164.9,175.59,175.53,0.04386361]
[1747884964444,5.6943,175.57,175.53,0.04386361]
[1747884964946,5.6943,175.57,175.54,1.42432873]
[1747884966044,5.6938,175.58,175.54,1.42432873]
[1747884966446,5.6938,175.58,175.53,5.73916361]
[1747884966647,5.6941,175.57,175.53,5.73916361]
[1747884966950,164.9,175.59,175.53,5.73916361]
[1747884967145,5.6941,175.58,175.53,5.73916361]
[1747884967345,164.9,175.59,175.53,5.73916361]
[1747884967546,164.9,175.59,175.54,5.695]
[1747884967748,164.9,175.59,175.53,0.04386361]
[1747884967939,164.9,175.59,175.55,1.42427316]
[1747884969346,5.6944,175.57,175.55,1.42427316]
[1747884970240,5.6938,175.58,175.53,5.73916361]
[1747884970447,5.6938,175.58,175.53,0.04386361]
[1747884971048,5.6941,175.57,175.53,0.04386361]
[1747884971454,164.9,175.59,175.54,5.695]
[1747884971640,5.6951,175.54,175.53,0.04386361]
[1747884971841,5.6951,175.54,175.53,1.4682491]
[1747884972450,164.9,175.59,175.53,1.4682491]
[1747884973150,164.9,175.59,175.54,1.42438549]
[1747884973344,1.8988,175.58,175.54,1.42438549]
[1747884973544,5.6947,175.55,175.54,1.42438549]
[1747884974543,5.6951,175.54,175.53,0.04386361]
[1747884975145,5.6948,175.55,175.53,0.04386361]
[1747884975747,1.8988,175.58,175.53,0.04386361]
[1747884975946,1.8988,175.58,175.53,6.361e-05]
[1747884976247,10.52087889,175.58,175.53,6.361e-05]
[1747884976747,5.6951,175.54,175.53,6.361e-05]
[1747884981754,5.73666701,175.55,175.53,6.361e-05]
[1747884981943,0.04186701,175.55,175.53,6.361e-05]
[1747884982143,70.50716925,264.25,175.53,6.361e-05]
[1747884982144,165.02,175.73,175.53,5.70006361]
[1747884982448,10.52907889,175.7,175.54,6.1146]
[1747884982643,6.58717889,175.67,175.54,6.1146]
[1747884983057,3.9419,175.7,175.59,0.03822292]
[1747884983350,6.58717889,175.66,175.63,9.99e-05]
[1747884983550,167.0105,175.65,175.63,9.99e-05]
[1747884984051,5.6918,175.64,175.63,9.99e-05]
[1747884985652,3.8884,175.64,175.53,165.02]
[1747884985950,3.8884,175.64,175.51,0.99810839]
[1747884986444,6.58717889,175.63,175.52,1.42422347]
[1747884986645,0.03663226,175.59,175.56,0.04176814]
[1747884986839,5.6941,175.58,175.56,0.04176814]
[1747884987652,0.03663226,175.59,175.56,0.04176814]
[1747884988156,5.6938,175.58,175.56,0.04176814]
[1747884988344,0.03663226,175.59,175.56,0.04176814]
[1747884989451,5.6941,175.57,175.56,0.04176814]
[1747884992053,5.6941,175.57,175.56,6.814e-05]
[1747884997556,165.03663226,175.59,175.56,6.814e-05]
[1747884998256,5.6941,175.57,175.56,6.814e-05]
[1747885003259,14.28403118,175.72,175.56,6.814e-05]
[1747885003459,8.50977889,175.66,175.51,169.76577889]
[1747885003660,169.70977889,175.66,175.52,1.964]
[1747885003961,169.70977889,175.66,175.55,5.6947]
[1747885004152,169.70977889,175.66,175.52,1.964]
[1747885004153,0.03835775,175.62,175.59,0.04138829]
[1747885005759,0.03835775,175.62,175.6,1.42413475]
[1747885007760,0.03835775,175.62,175.59,5.73478829]
[1747885007761,0.03835775,175.62,175.61,1.42413475]
[1747885008859,0.03835775,175.62,175.61,7.11693475]
[1747885011072,0.03835775,175.62,175.61,1.42413475]
[1747885012670,0.03835775,175.62,175.59,0.04138829]
[1747885012871,0.03835775,175.62,175.6,5.6929]
[1747885013368,0.03835775,175.62,175.59,5.73478829]
[1747885013574,0.03835775,175.62,175.59,0.04138829]
[1747885013969,0.03835775,175.62,175.59,5.73478829]
[1747885014170,0.03835775,175.62,175.59,0.04138829]
[1747885014472,0.03835775,175.62,175.6,5.6929]
[1747885014771,0.03835775,175.62,175.59,0.04138829]
[1747885015170,0.03835775,175.62,175.6,5.6931]
[1747885015371,0.03835775,175.62,175.59,0.04138829]
[1747885016072,0.03835775,175.62,175.6,1.42379634]
[1747885017374,0.03835775,175.62,175.61,5.6928]
[1747885017568,0.03835775,175.62,175.59,0.04138829]
[1747885017872,0.03835775,175.62,175.59,5.73458829]
[1747885018373,0.03835775,175.62,175.59,0.04138829]
[1747885019667,5.6931,175.6,175.59,0.04138829]
[1747885019868,5.6931,175.6,175.59,8.829e-05]
[1747885020675,166.8131,175.6,175.59,8.829e-05]
[1747885022378,5.6961,175.51,175.5,1.42447179]
[1747885022777,161.14,175.54,175.45,0.99810839]
[1747885023374,0.0388372,175.51,175.48,0.03904009]
[1747885023978,5.6967,175.49,175.48,4.009e-05]
[1747885024282,6.58717889,175.49,175.42,1.31858352]
[1747885024579,5.6987,175.43,175.42,8.352e-05]
[1747885024771,166.8387,175.43,175.42,8.352e-05]
[1747885026280,166.8387,175.43,175.41,0.0370616]
[1747885026580,0.03673237,175.44,175.41,0.0370616]
[1747885027272,5.699,175.42,175.41,0.0370616]
[1747885027468,5.699,175.42,175.41,6.16e-05]
[1747885027677,166.919,175.42,175.41,6.16e-05]
[1747885027875,5.7012,175.35,175.34,1.42537202]
[1747885028077,161.22,175.42,175.34,1.42537202]
[1747885028270,5.701,175.36,175.34,1.42537202]
[1747885028880,5.7012,175.35,175.34,1.42537202]
[1747885029477,5.7016,175.34,175.33,0.03593683]
[1747885029876,5.7013,175.35,175.33,0.03593683]
[1747885030179,0.04238604,175.37,175.33,0.03593683]
[1747885031075,5.7012,175.36,175.33,0.03593683]
[1747885031771,5.74298604,175.37,175.33,0.03593683]
[1747885031980,0.04238604,175.37,175.33,0.03593683]
[1747885033383,5.7016,175.34,175.33,0.03593683]
[1747885033878,0.04238604,175.37,175.33,0.03593683]
[1747885034580,5.701,175.36,175.33,0.03593683]
[1747885034879,0.04238604,175.37,175.33,0.03593683]
[1747885035282,5.74308604,175.37,175.33,0.03593683]
[1747885035580,0.04238604,175.37,175.33,0.03593683]
[1747885036575,0.04238604,175.37,175.34,5.7015]
[1747885036785,0.04238604,175.37,175.33,0.03593683]
[1747885037180,0.04238604,175.37,175.33,5.73773683]
[1747885037378,0.04238604,175.37,175.33,0.03593683]
[1747885037881,0.04238604,175.37,175.34,5.7013]
[1747885038087,0.04238604,175.37,175.33,0.03593683]
[1747885038987,5.701,175.36,175.33,0.03593683]
[1747885039588,5.74298604,175.37,175.33,0.03593683]
[1747885039789,0.04238604,175.37,175.34,5.7013]
[1747885040088,0.04238604,175.37,175.33,0.03593683]
[1747885041086,0.04238604,175.37,175.34,5.7013]
[1747885041290,0.04238604,175.37,175.33,0.03593683]
[1747885042785,5.74328604,175.37,175.33,0.03593683]
[1747885043089,0.04238604,175.37,175.33,0.03593683]
[1747885043688,0.04238604,175.37,175.33,5.73753683]
[1747885043890,0.04238604,175.37,175.33,0.03593683]
[1747885045184,5.7016,175.34,175.33,0.03593683]
[1747885046394,5.7016,175.34,175.33,3.683e-05]
[1747885052202,5.7043,175.26,175.21,5.7057]
[1747885052496,159.16,175.29,175.19,3.8564]
[1747885052691,159.16,175.29,175.19,9.5626]
[1747885053191,0.04370796,175.26,175.22,0.04116157]
[1747885053392,5.7051,175.23,175.22,0.04116157]
[1747885054396,0.04370796,175.26,175.22,0.04116157]
[1747885055094,0.04370796,175.26,175.23,5.7051]
[1747885055294,0.04370796,175.26,175.22,0.04116157]
[1747885055987,5.7047,175.25,175.22,0.04116157]
[1747885056589,5.74790796,175.26,175.22,0.04116157]
[1747885056788,0.04370796,175.26,175.22,0.04116157]
[1747885057790,0.04370796,175.26,175.23,5.7051]
[1747885058192,0.04370796,175.26,175.22,0.04116157]
[1747885058390,5.7046,175.25,175.22,0.04116157]
[1747885058800,0.04370796,175.26,175.22,0.04116157]
[1747885059001,5.74810796,175.26,175.22,5.74656157]
[1747885059298,0.04370796,175.26,175.22,0.04116157]
[1747885059498,0.04370796,175.26,175.23,5.7051]
[1747885059800,0.04370796,175.26,175.22,0.04116157]
[1747885060306,0.04370796,175.26,175.22,6.63221364]
[1747885060699,0.04370796,175.26,175.25,5.7045]
[1747885061900,5.7015,175.35,175.25,12.29105207]
[1747885062206,162.3714,175.44,175.31,6.59105207]
[1747885062401,5.6998,175.4,175.34,5.7014]
[1747885062699,158.2905,175.44,175.34,6.59105207]
[1747885062903,0.03813492,175.41,175.37,0.03676808]
[1747885063501,5.6997,175.4,175.37,0.03676808]
[1747885063703,0.03813492,175.41,175.37,0.03676808]
[1747885066400,0.03813492,175.41,175.38,1.42541045]
[1747885066999,5.6996,175.4,175.38,1.42541045]
[1747885067905,5.6999,175.39,175.38,1.42541045]
[1747885068107,0.03813492,175.41,175.38,1.42541045]
[1747885068403,0.03813492,175.41,175.39,1.42541045]
[1747885068603,5.6996,175.4,175.39,1.42541045]
[1747885071702,5.6996,175.4,175.37,0.03676808]
[1747885071905,0.03813492,175.41,175.37,0.03676808]
[1747885072509,5.7003,175.38,175.37,0.03676808]
[1747885076312,5.7001,175.39,175.37,0.03676808]
[1747885076506,0.03813492,175.41,175.37,0.03676808]
[1747885077011,5.7003,175.38,175.37,0.03676808]
[1747885080310,5.7,175.39,175.37,0.03676808]
[1747885081208,5.6997,175.4,175.37,0.03676808]
[1747885081402,0.03813492,175.41,175.37,0.03676808]
[1747885082608,0.03813492,175.41,175.38,5.7002]
[1747885082816,0.03813492,175.41,175.37,0.03676808]
[1747885083923,5.7003,175.38,175.37,0.03676808]
[1747885086825,5.7,175.39,175.37,0.03676808]
[1747885087024,0.03813492,175.41,175.37,0.03676808]
[1747885087723,5.7003,175.38,175.37,0.03676808]
[1747885092217,5.7,175.39,175.37,0.03676808]
[1747885092924,0.03813492,175.41,175.37,0.03676808]
[1747885094527,5.7003,175.38,175.37,0.03676808]
[1747885098531,5.7003,175.38,175.37,6.808e-05]
[1747885101536,0.03813492,175.41,175.37,6.808e-05]
[1747885103439,0.03813492,175.41,175.38,1.42615595]
[1747885104145,5.6999,175.39,175.38,1.42615595]
[1747885105242,5.7003,175.38,175.37,6.808e-05]
[1747885105842,5.7003,175.38,175.37,1.42580377]
[1747885106042,0.03813492,175.41,175.37,1.42580377]
[1747885107646,0.03813492,175.41,175.37,6.808e-05]
[1747885107839,5.6999,175.4,175.37,6.808e-05]
[1747885108139,0.03813492,175.41,175.37,6.808e-05]
[1747885108544,5.7003,175.38,175.37,6.808e-05]
[1747885110844,5.7003,175.38,175.37,1.42586117]
[1747885112047,5.7003,175.38,175.37,6.808e-05]
[1747885116560,5.7029,175.3,175.29,0.99295091]
[1747885117649,5.7032,175.29,175.28,0.04072697]
[1747885119052,5.7032,175.29,175.28,1.46713614]
[1747885119347,0.03728177,175.31,175.28,1.46713614]
[1747885120150,5.7032,175.29,175.28,1.46713614]
[1747885121084,5.7032,175.29,175.28,0.04072697]
[1747885123952,5.7032,175.29,175.28,2.697e-05]
[1747885124152,5.7061,175.2,175.19,1.9798]
[1747885124455,156.98,175.27,175.18,0.99295091]
[1747885124845,156.98,175.27,175.19,1.42697131]
[1747885125149,0.04091603,175.25,175.21,0.04064717]
[1747885125853,5.7054,175.22,175.21,0.04064717]
[1747885129058,0.04091603,175.25,175.21,0.04064717]
[1747885129654,5.7054,175.22,175.21,0.04064717]
[1747885132558,5.7052,175.23,175.21,0.04064717]
[1747885132752,0.04091603,175.25,175.21,0.04064717]
[1747885132953,0.04091603,175.25,175.22,5.7054]
[1747885133159,5.74541603,175.25,175.21,0.04064717]
[1747885133354,0.04091603,175.25,175.21,0.04064717]
[1747885133553,5.7054,175.22,175.21,0.04064717]
[1747885134159,5.7052,175.23,175.21,0.04064717]
[1747885134563,0.04091603,175.25,175.21,0.04064717]
[1747885135357,5.7049,175.24,175.21,0.04064717]
[1747885135560,0.04091603,175.25,175.21,0.04064717]
[1747885135759,5.705,175.24,175.21,0.04064717]
[1747885136561,5.7051,175.23,175.21,0.04064717]
[1747885137350,5.7054,175.22,175.21,0.04064717]
[1747885137665,0.04091603,175.25,175.21,0.04064717]
[1747885138960,5.7054,175.22,175.21,0.04064717]
[1747885140264,5.7051,175.24,175.21,0.04064717]
[1747885140560,0.04091603,175.25,175.21,0.04064717]
[1747885141064,5.7053,175.23,175.21,0.04064717]
[1747885141265,0.04091603,175.25,175.21,0.04064717]
[1747885141763,0.04091603,175.25,175.22,5.7052]
[1747885141958,0.04091603,175.25,175.21,0.04064717]
[1747885142158,0.04091603,175.25,175.21,5.74614717]
[1747885142559,0.04091603,175.25,175.21,0.04064717]
[1747885142764,0.04091603,175.25,175.21,3.97814717]
[1747885143157,0.04091603,175.25,175.22,5.7053]
[1747885143363,0.04091603,175.25,175.21,3.97814717]
[1747885143561,157.04,175.31,175.21,3.97814717]
[1747885143765,157.04,175.36,175.24,6.58409966]
[1747885143962,157.04,175.36,175.25,1.9565]
[1747885144261,5.7019,175.33,175.27,12.28759966]
[1747885144574,0.04043923,175.32,175.28,0.0415687]
[1747885145174,5.7032,175.29,175.28,0.0415687]
[1747885150867,5.7032,175.29,175.28,6.87e-05]
[1747885160074,0.04043923,175.32,175.28,6.87e-05]
[1747885160271,151.88,175.4,175.28,6.87e-05]
[1747885160478,151.88,175.4,175.3,6.58409966]
[1747885160677,5.7006,175.37,175.3,6.58409966]
[1747885161079,5.7006,175.37,175.32,5.7022]
[1747885161280,5.74440268,175.36,175.33,0.03763379]
[1747885161590,0.04350268,175.36,175.33,0.03763379]
[1747885161878,5.74450268,175.36,175.33,0.03763379]
[1747885162278,0.04350268,175.36,175.33,0.03763379]
[1747885162583,0.04350268,175.36,175.34,1.42589274]
[1747885163583,0.04350268,175.36,175.35,5.7012]
[1747885164383,0.04350268,175.36,175.35,7.12709274]
[1747885164683,0.04350268,175.36,175.35,1.42589274]
[1747885165984,0.04350268,175.36,175.33,0.03763379]
[1747885166885,0.04350268,175.36,175.34,1.42564792]
[1747885167581,0.04350268,175.36,175.34,7.12694792]
[1747885167779,0.04350268,175.36,175.34,1.42564792]
[1747885168488,0.04350268,175.36,175.33,0.03763379]
[1747885168489,0.04350268,175.36,175.33,5.73943379]
[1747885168982,0.04350268,175.36,175.33,0.03763379]
[1747885169783,5.7015,175.34,175.33,0.03763379]
[1747885179597,5.7034,175.29,175.26,153.8417]
[1747885180094,5.7034,175.29,175.26,1.9617]
[1747885180488,5.7034,175.29,175.26,7.6657]
[1747885180696,5.74334994,175.29,175.26,2.00288444]
[1747885180886,0.03994994,175.29,175.26,2.00288444]
[1747885182695,0.03994994,175.29,175.28,5.7035]
[1747885186094,0.03994994,175.29,175.28,7.12974142]
[1747885189195,0.03994994,175.29,175.28,1.42624142]
[1747885189996,0.03994994,175.29,175.26,2.00288444]
[1747885190707,0.03994994,175.29,175.27,5.7038]
[1747885191707,0.03994994,175.29,175.26,0.04118444]
[1747885192102,5.7035,175.28,175.26,0.04118444]
[1747885193911,5.7038,175.27,175.26,0.04118444]
[1747885194613,5.7038,175.27,175.26,1.4676044]
[1747885196209,5.74324994,175.29,175.26,1.4676044]
[1747885196415,0.03994994,175.29,175.26,1.4676044]
[1747885196912,5.74314994,175.29,175.26,1.4676044]
[1747885197811,0.03994994,175.29,175.26,7.1717044]
[1747885198012,0.03994994,175.29,175.27,1.42641996]
[1747885198606,5.7035,175.28,175.27,1.42641996]
[1747885199117,5.7038,175.27,175.26,0.04118444]
[1747885200716,0.03994994,175.29,175.18,0.99295091]
[1747885200922,6.59631954,175.28,175.18,0.99295091]
[1747885201116,6.59757284,175.28,175.18,0.99295091]
[1747885201318,5.9371,175.3,175.18,0.99295091]
[1747885201625,0.04296805,175.26,175.22,0.04090282]
[1747885202628,5.7047,175.25,175.22,0.04090282]
[1747885203026,0.04296805,175.26,175.22,0.04090282]
[1747885203324,5.7045,175.25,175.22,0.04090282]
[1747885203523,0.04296805,175.26,175.22,0.04090282]
[1747885203716,5.7048,175.24,175.22,0.04090282]
[1747885204118,0.04296805,175.26,175.22,0.04090282]
[1747885204415,5.7051,175.23,175.22,0.04090282]
[1747885204940,5.7051,175.23,175.22,1.46765647]
[1747885205229,5.7048,175.24,175.22,1.46765647]
[1747885205620,5.7047,175.25,175.22,1.46765647]
[1747885205927,0.04296805,175.26,175.22,1.46765647]
[1747885206622,0.04296805,175.26,175.22,0.04090282]
[1747885206826,5.7051,175.23,175.22,0.04090282]
[1747885207526,5.7049,175.24,175.22,0.04090282]
[1747885208031,5.7045,175.25,175.22,0.04090282]
[1747885208431,0.04296805,175.26,175.22,0.04090282]
[1747885209134,0.04296805,175.26,175.22,5.74620282]
[1747885209433,5.74736805,175.26,175.22,5.74620282]
[1747885209932,5.74736805,175.26,175.23,1.42658273]
[1747885210530,0.04296805,175.26,175.23,1.42658273]
[1747885211236,0.04296805,175.26,175.24,1.42658273]
[1747885211638,5.74716805,175.26,175.24,1.42658273]
[1747885212529,0.04296805,175.26,175.24,1.42658273]
[1747885213333,0.04296805,175.26,175.25,1.42658273]
[1747885214239,5.74706805,175.26,175.25,1.42658273]
[1747885214540,0.04296805,175.26,175.25,1.42658273]
[1747885217539,0.04296805,175.26,175.25,7.13098273]
[1747885218842,5.7026,175.31,175.26,5.7039]
[1747885219942,0.0375098,175.3,175.27,0.04318144]
[1747885221148,0.0375098,175.3,175.28,1.42658273]
[1747885222345,0.0375098,175.3,175.29,1.42658273]
[1747885223850,5.7403098,175.3,175.29,1.42658273]
[1747885224546,0.0375098,175.3,175.29,1.42658273]
[1747885226552,5.7403098,175.3,175.29,1.42658273]
[1747885228552,0.0375098,175.3,175.29,1.42658273]
[1747885230257,0.0375098,175.3,175.29,7.12968273]
[1747885233954,1.9951,175.4,175.32,5.7021]
[1747885234261,5.7008,175.37,175.29,1.42658273]
[1747885234558,1.9951,175.4,175.29,2.41953364]
[1747885234760,5.74350121,175.36,175.33,0.03685071]
[1747885235459,5.7012,175.35,175.33,0.03685071]
[1747885235658,5.7012,175.35,175.34,1.42658273]
[1747885237554,0.04260121,175.36,175.33,0.03685071]
[1747885238960,0.04260121,175.36,175.35,5.7012]
[1747885241259,0.04260121,175.36,175.35,7.12679086]
[1747885243672,0.04260121,175.36,175.35,1.42559086]
[1747885246561,5.74350121,175.36,175.35,1.42559086]
[1747885247061,5.74350121,175.36,175.33,0.03685071]
[1747885247871,0.04260121,175.36,175.33,0.03685071]
[1747885248272,0.04260121,175.36,175.34,1.42572445]
[1747885248571,5.7014,175.35,175.34,1.42572445]
[1747885249574,5.7015,175.34,175.33,0.03685071]
[1747885249870,0.04260121,175.36,175.28,0.99295091]
[1747885250062,2.0177,175.35,175.28,0.99295091]
[1747885250566,5.7022,175.32,175.28,6.69615091]
[1747885250974,5.74566303,175.32,175.28,6.73226188]
[1747885251277,0.04346303,175.32,175.29,7.12922714]
[1747885252275,0.04346303,175.32,175.3,5.7027]
[1747885252474,0.04346303,175.32,175.29,1.42612714]
[1747885252679,0.04346303,175.32,175.3,5.7027]
[1747885252969,0.04346303,175.32,175.31,1.42612714]
[1747885262979,5.74566303,175.32,175.31,1.42612714]
[1747885266986,0.04346303,175.32,175.31,1.42612714]
[1747885267476,1.9675,175.4,175.31,1.42612714]
[1747885267678,142.982,175.43,175.31,1.42612714]
[1747885268178,5.7001,175.39,175.34,5.7015]
[1747885268482,0.03742363,175.38,175.35,0.04245724]
[1747885269180,0.03742363,175.38,175.36,1.42612714]